bitfinex-derivatives/quotes_BTCF0:USTF0_20241218
["timestamp","ask_amount","ask_price","bid_price","bid_amount"]
[1734547342573,0.11403097,104230.0,104220.0,0.118177]
[1734547342773,0.11403097,104230.0,104220.0,0.26887531]
[1734547343087,0.11403097,104230.0,104220.0,0.118177]
[1734547343279,0.11453097,104230.0,104220.0,0.118177]
[1734547344277,0.21134064,104240.0,104230.0,0.047973]
[1734547344476,0.21134064,104240.0,104230.0,0.69757131]
[1734547344680,0.21134064,104240.0,104230.0,0.186073]
[1734547345275,0.19929203,104240.0,104230.0,0.18616281]
[1734547345476,0.17929203,104240.0,104230.0,0.33686112]
[1734547345681,3.1e-07,104240.0,104230.0,0.69766112]
[1734547346179,0.3608,104310.0,104300.0,0.047941]
[1734547346376,0.3608,104350.0,104320.0,0.047928]
[1734547346571,0.3608,104350.0,104330.0,0.047927]
[1734547346771,0.3608,104340.0,104310.0,0.51149831]
[1734547347082,0.40881204,104330.0,104310.0,0.04804236]
[1734547347275,0.40881204,104330.0,104320.0,0.047931]
[1734547347585,0.30881504,104330.0,104300.0,0.3608]
[1734547347781,0.408732,104320.0,104290.0,0.3608]
[1734547347982,0.473036,104310.0,104300.0,0.04794]
[1734547348286,0.112236,104310.0,104300.0,0.04794]
[1734547348781,0.473036,104310.0,104300.0,0.92824806]
[1734547349086,0.473036,104310.0,104300.0,0.88030806]
[1734547349087,0.5532724,104310.0,104300.0,0.88030806]
[1734547349776,0.38066836,104310.0,104300.0,0.88030806]
[1734547350080,0.408736,104310.0,104300.0,0.88030806]
[1734547350286,0.22421153,104310.0,104300.0,1.22197547]
[1734547350587,0.22421153,104310.0,104300.0,0.74327482]
[1734547350984,0.408736,104310.0,104300.0,0.74327482]
[1734547351183,0.708736,104310.0,104300.0,0.74327482]
[1734547351685,0.87133574,104310.0,104300.0,0.74327482]
[1734547352386,0.06007986,104310.0,104300.0,0.79121582]
[1734547352595,0.06007986,104310.0,104300.0,0.73415198]
[1734547352781,0.06007986,104310.0,104300.0,0.68621098]
[1734547352987,0.12687986,104310.0,104300.0,0.68621098]
[1734547354379,0.12737986,104310.0,104300.0,0.68621098]
[1734547358084,0.12737986,104310.0,104300.0,0.74327482]
[1734547358879,0.12737986,104310.0,104300.0,0.40160741]
[1734547359583,0.12737986,104310.0,104300.0,0.76240741]
[1734547359781,0.14659112,104310.0,104300.0,1.38864056]
[1734547360482,0.14659112,104310.0,104300.0,1.07578156]
[1734547361195,1.00095588,104320.0,104300.0,0.79121582]
[1734547361490,0.048436,104310.0,104300.0,0.79121582]
[1734547361988,0.047936,104310.0,104300.0,1.15201582]
[1734547362290,0.048436,104310.0,104300.0,1.21882371]
[1734547362588,0.048436,104310.0,104300.0,1.57962371]
[1734547363180,0.048436,104310.0,104300.0,1.43674471]
[1734547364482,0.048436,104310.0,104300.0,0.79121582]
[1734547364682,0.06780271,104310.0,104300.0,1.15201582]
[1734547365078,0.06780271,104310.0,104300.0,1.57962371]
[1734547365287,0.0005,104310.0,104300.0,1.57962371]
[1734547365485,0.048436,104310.0,104300.0,1.57962371]
[1734547365691,0.0005,104310.0,104300.0,1.57962371]
[1734547365890,0.048436,104310.0,104300.0,1.57962371]
[1734547366094,0.19889188,104310.0,104300.0,1.57962371]
[1734547367289,0.19839188,104310.0,104300.0,1.21882371]
[1734547367492,0.19839188,104310.0,104300.0,1.57962371]
[1734547367991,0.19839188,104310.0,104300.0,1.15201582]
[1734547368383,0.62409188,104310.0,104300.0,0.63100114]
[1734547368584,0.93856192,104310.0,104300.0,0.59200114]
[1734547368790,0.93856192,104310.0,104300.0,0.5615]
[1734547369093,0.93856192,104310.0,104300.0,0.4479]
[1734547369301,0.93856192,104310.0,104300.0,0.14350384]
[1734547369302,1.31885123,104310.0,104300.0,0.14350384]
[1734547369489,1.31885123,104310.0,104300.0,0.28548417]
[1734547370394,1.31885123,104310.0,104300.0,0.22857374]
[1734547371282,1.31885123,104310.0,104290.0,0.38761801]
[1734547371496,0.55919688,104300.0,104290.0,0.28548417]
[1734547371891,0.55919688,104300.0,104290.0,0.26243417]
[1734547372488,0.48902524,104300.0,104290.0,0.26243417]
[1734547373096,0.12822524,104300.0,104290.0,0.26243417]
[1734547373489,0.16484358,104310.0,104290.0,0.62323417]
[1734547373684,0.06759734,104310.0,104300.0,0.408741]
[1734547373894,0.14788158,104310.0,104300.0,0.408741]
[1734547375490,0.14788158,104310.0,104300.0,0.047941]
[1734547375693,0.047941,104300.0,104290.0,0.82774736]
[1734547375888,0.047941,104300.0,104290.0,0.474942]
[1734547376789,0.047941,104300.0,104290.0,0.82812353]
[1734547377485,0.14788158,104310.0,104300.0,0.047941]
[1734547377687,0.06759734,104310.0,104300.0,0.408741]
[1734547377887,0.06759734,104310.0,104300.0,0.479041]
[1734547378395,0.14788158,104310.0,104300.0,0.479041]
[1734547378598,0.14788158,104310.0,104300.0,0.118241]
[1734547378896,0.14788158,104310.0,104300.0,0.83222253]
[1734547381503,0.01965934,104310.0,104300.0,0.83222253]
[1734547381686,0.14787958,104310.0,104300.0,0.83222253]
[1734547382091,0.09994358,104310.0,104300.0,0.83222253]
[1734547382294,0.01965934,104310.0,104300.0,0.83222253]
[1734547382697,7.003e-05,104310.0,104300.0,0.91250677]
[1734547383504,0.0223704,104320.0,104300.0,1.07016951]
[1734547383802,0.01934745,104330.0,104320.0,0.047931]
[1734547384000,0.01934745,104330.0,104320.0,0.408731]
[1734547384194,0.01934745,104330.0,104320.0,0.477331]
[1734547384399,0.01934745,104330.0,104320.0,0.543131]
[1734547384597,0.01943859,104330.0,104320.0,1.18683603]
[1734547385207,0.01594421,104340.0,104320.0,1.18683603]
[1734547385499,0.01,104360.0,104330.0,0.55561124]
[1734547385697,0.1808137,104370.0,104350.0,0.408718]
[1734547385897,0.12819824,104360.0,104350.0,0.408718]
[1734547386097,0.047914,104360.0,104350.0,0.477318]
[1734547386298,0.08271915,104370.0,104360.0,0.047913]
[1734547386507,0.047913,104360.0,104350.0,0.477316]
[1734547386702,0.047918,104350.0,104330.0,0.4274]
[1734547386897,0.12820624,104340.0,104330.0,0.4935]
[1734547387210,0.12820624,104340.0,104320.0,1.67652739]
[1734547387211,0.047927,104330.0,104320.0,0.47942136]
[1734547387500,0.047927,104330.0,104320.0,0.49759236]
[1734547387713,0.047927,104330.0,104320.0,0.43149236]
[1734547387714,0.1283267,104330.0,104320.0,0.43149236]
[1734547387893,0.1283267,104330.0,104320.0,1.00158997]
[1734547388297,0.14272671,104330.0,104320.0,1.00158997]
[1734547389103,0.14272671,104330.0,104320.0,1.04952097]
[1734547389299,0.14272671,104330.0,104320.0,0.408731]
[1734547391598,0.14272671,104330.0,104320.0,0.3608]
[1734547391799,0.15845631,104330.0,104320.0,0.3608]
[1734547392796,0.15845631,104330.0,104310.0,0.82290435]
[1734547393001,0.12821524,104320.0,104310.0,0.45110435]
[1734547393309,0.047931,104320.0,104310.0,0.45110435]
[1734547393801,0.047931,104320.0,104310.0,0.75210435]
[1734547393802,0.12821524,104320.0,104310.0,0.75210435]
[1734547394698,0.12821524,104320.0,104310.0,0.408734]
[1734547395406,0.12821524,104320.0,104310.0,0.047934]
[1734547396411,0.047936,104310.0,104300.0,0.542838]
[1734547396800,0.08028424,104320.0,104300.0,0.542838]
[1734547397010,0.047933,104320.0,104310.0,0.408734]
[1734547401406,0.12821724,104320.0,104310.0,0.408734]
[1734547401611,0.12821724,104320.0,104310.0,0.047934]
[1734547401813,0.12821724,104320.0,104300.0,0.542839]
[1734547402008,0.20850448,104310.0,104300.0,0.33570368]
[1734547402310,0.20850448,104310.0,104290.0,0.26980953]
[1734547402311,0.047941,104300.0,104290.0,0.26980953]
[1734547402500,1.50396524,104300.0,104290.0,0.10452951]
[1734547402701,1.50396524,104300.0,104290.0,0.09851997]
[1734547402913,1.50396524,104300.0,104290.0,0.28636011]
[1734547403513,1.50396524,104300.0,104290.0,0.22903111]
[1734547403909,1.20396524,104300.0,104290.0,0.22903111]
[1734547404210,0.047945,104290.0,104280.0,7.599e-05]
[1734547404422,0.48902924,104290.0,104280.0,7.599e-05]
[1734547404606,0.63561348,104290.0,104280.0,1e-08]
[1734547404808,0.047954,104270.0,104260.0,0.07133859]
[1734547405117,0.12823824,104270.0,104260.0,0.478659]
[1734547405307,0.12823824,104270.0,104260.0,0.117859]
[1734547405914,0.12832453,104270.0,104260.0,0.117859]
[1734547406316,0.12832453,104270.0,104260.0,0.24164963]
[1734547406720,0.08028424,104270.0,104260.0,0.24164963]
[1734547407012,0.12823824,104270.0,104260.0,0.28960863]
[1734547407215,0.12823824,104270.0,104260.0,0.17174963]
[1734547407809,0.12835992,104270.0,104260.0,0.17174963]
[1734547408213,0.12835992,104270.0,104260.0,0.53254963]
[1734547408417,0.12835992,104270.0,104260.0,0.17174963]
[1734547408718,0.14275993,104270.0,104260.0,0.17174963]
[1734547408904,0.12835992,104270.0,104260.0,0.21970863]
[1734547409110,0.12835992,104270.0,104260.0,0.58050863]
[1734547409811,0.12835992,104270.0,104260.0,0.408759]
[1734547410620,0.00012168,104270.0,104260.0,0.408759]
[1734547412519,0.00012168,104270.0,104260.0,0.48954324]
[1734547412818,0.42164645,104300.0,104280.0,0.047949]
[1734547413122,0.42164645,104300.0,104290.0,0.118645]
[1734547413509,0.37370545,104300.0,104290.0,0.479445]
[1734547413715,0.01944638,104300.0,104290.0,0.479445]
[1734547414822,0.03892314,104300.0,104290.0,0.479445]
[1734547415124,0.00010093,104300.0,104290.0,0.479445]
[1734547415918,0.00010093,104300.0,104290.0,0.65080069]
[1734547418318,0.00010093,104300.0,104290.0,0.73108493]
[1734547418617,0.04804193,104300.0,104290.0,0.479445]
[1734547419626,0.00010093,104300.0,104290.0,0.479445]
[1734547420323,0.12832617,104300.0,104290.0,0.408745]
[1734547420525,0.04804193,104300.0,104290.0,0.408745]
[1734547420724,0.04804193,104300.0,104290.0,0.58038077]
[1734547421520,0.00010093,104300.0,104290.0,0.58038077]
[1734547422222,0.04804193,104300.0,104290.0,0.58038077]
[1734547422721,0.04804193,104300.0,104290.0,0.21958077]
[1734547423320,0.04804193,104300.0,104290.0,0.58038077]
[1734547424431,0.00010093,104300.0,104290.0,0.58038077]
[1734547426029,0.00010093,104300.0,104290.0,0.408745]
[1734547428031,0.00010093,104300.0,104290.0,0.48902924]
[1734547428833,0.00010093,104300.0,104290.0,0.78902924]
[1734547429427,0.01955403,104310.0,104300.0,0.047941]
[1734547429729,0.0198572,104320.0,104310.0,0.047936]
[1734547429929,0.0198572,104320.0,104310.0,0.408736]
[1734547430121,0.01988906,104320.0,104310.0,0.48902024]
[1734547430322,0.01996264,104320.0,104310.0,0.48902024]
[1734547432034,0.01996264,104320.0,104310.0,0.73856768]
[1734547432233,0.06789364,104320.0,104310.0,0.65828344]
[1734547432429,0.01996264,104320.0,104310.0,0.65828344]
[1734547432624,0.01996264,104320.0,104310.0,0.73856768]
[1734547433233,0.01996264,104320.0,104310.0,0.71784941]
[1734547433530,0.01946264,104320.0,104310.0,0.71784941]
[1734547434742,0.01946264,104320.0,104310.0,0.7749706]
[1734547435221,0.048427,104330.0,104320.0,0.047931]
[1734547435426,0.06678893,104340.0,104330.0,0.047927]
[1734547435624,0.06678893,104340.0,104330.0,0.408727]
[1734547436332,0.06678893,104340.0,104330.0,0.047927]
[1734547436638,0.14707317,104340.0,104330.0,0.047927]
[1734547437033,0.22057317,104340.0,104330.0,0.047927]
[1734547438039,0.09236493,104340.0,104330.0,0.408727]
[1734547439028,0.22057117,104340.0,104330.0,0.408727]
[1734547439238,0.047927,104330.0,104320.0,0.16871256]
[1734547439434,0.20381124,104330.0,104320.0,0.13317036]
[1734547439641,0.27641124,104330.0,104320.0,0.13317036]
[1734547440044,0.196127,104330.0,104320.0,0.18110136]
[1734547441144,0.196127,104330.0,104320.0,0.54190136]
[1734547441647,0.0756,104330.0,104320.0,0.54190136]
[1734547441950,0.0756,104330.0,104320.0,0.18110136]
[1734547442332,0.123527,104330.0,104320.0,0.18110136]
[1734547442537,0.123527,104330.0,104320.0,0.54190136]
[1734547442946,0.20381124,104330.0,104320.0,0.54190136]
[1734547443151,0.15588424,104330.0,104320.0,0.54190136]
[1734547443346,0.0756,104330.0,104320.0,0.54190136]
[1734547444261,0.0756,104330.0,104320.0,0.77058983]
[1734547444753,0.10021512,104330.0,104320.0,0.77058983]
[1734547445147,0.22842636,104330.0,104320.0,0.77058983]
[1734547446255,0.14814212,104330.0,104320.0,0.77058983]
[1734547446754,0.22842636,104330.0,104320.0,0.77058983]
[1734547447155,0.22842636,104330.0,104320.0,0.40978983]
[1734547447944,0.58922636,104330.0,104320.0,0.40978983]
[1734547448658,0.22842636,104330.0,104320.0,0.18110136]
[1734547449160,0.22842636,104330.0,104320.0,0.13317036]
[1734547449353,0.58922636,104330.0,104320.0,0.01881602]
[1734547449549,0.047931,104320.0,104310.0,0.22370373]
[1734547449750,0.56731524,104320.0,104310.0,0.47450409]
[1734547450059,0.94759948,104320.0,104310.0,0.35400409]
[1734547450355,0.94759948,104320.0,104310.0,0.23350409]
[1734547451261,0.94759948,104320.0,104290.0,0.047943]
[1734547451262,0.047941,104300.0,104290.0,0.047943]
[1734547451456,0.047941,104300.0,104280.0,0.5089]
[1734547451754,0.047945,104290.0,104280.0,0.556847]
[1734547455357,0.047945,104290.0,104280.0,0.5089]
[1734547455560,0.12822924,104290.0,104280.0,0.1481]
[1734547456261,0.48902924,104290.0,104260.0,0.82815778]
[1734547456459,0.047954,104270.0,104260.0,0.98185778]
[1734547456864,0.12823624,104280.0,104260.0,0.98185778]
[1734547457066,0.047954,104270.0,104260.0,0.98185778]
[1734547457761,0.047954,104270.0,104260.0,0.87192064]
[1734547458165,0.047954,104270.0,104260.0,0.79602064]
[1734547458463,0.12823824,104270.0,104260.0,0.79602064]
[1734547458654,0.12823824,104270.0,104260.0,0.38726364]
[1734547458655,0.047954,104270.0,104260.0,0.38726364]
[1734547458855,0.48903824,104270.0,104260.0,0.38726364]
[1734547459070,0.84331824,104270.0,104260.0,0.0744]
[1734547459567,0.84331824,104270.0,104260.0,0.0005]
[1734547459768,0.91601824,104270.0,104260.0,0.00046]
[1734547461567,0.94622803,104270.0,104260.0,0.00046]
[1734547462758,0.047964,104250.0,104240.0,0.07369884]
[1734547462959,0.48904824,104250.0,104240.0,0.07369884]
[1734547463172,0.48904824,104250.0,104240.0,9.884e-05]
[1734547463669,0.047968,104240.0,104230.0,0.5154]
[1734547463859,0.12825224,104240.0,104230.0,0.1546]
[1734547464059,0.48905224,104240.0,104230.0,0.1546]
[1734547464354,0.48905224,104240.0,104230.0,0.0757]
[1734547464760,0.48915928,104240.0,104230.0,0.0757]
[1734547464957,0.047977,104220.0,104210.0,0.488019]
[1734547465162,0.12826124,104220.0,104210.0,0.488019]
[1734547466164,0.12826124,104220.0,104210.0,0.44004]
[1734547466768,0.20854548,104220.0,104210.0,0.44004]
[1734547466966,0.12826124,104220.0,104210.0,0.44004]
[1734547467372,0.20854548,104220.0,104210.0,0.44004]
[1734547467672,0.20854548,104220.0,104210.0,0.07924]
[1734547467867,0.56934548,104220.0,104210.0,0.07924]
[1734547468072,0.047982,104210.0,104200.0,0.02118922]
[1734547468277,0.48914052,104210.0,104180.0,0.632195]
[1734547468476,0.12827524,104190.0,104180.0,0.632195]
[1734547468777,0.12827524,104190.0,104180.0,0.5842]
[1734547469369,0.12827524,104190.0,104180.0,0.632196]
[1734547469770,0.12827524,104190.0,104180.0,0.5842]
[1734547469972,0.08028424,104190.0,104180.0,0.632196]
[1734547470166,0.08035852,104210.0,104190.0,0.047988]
[1734547470360,0.04805828,104210.0,104190.0,0.408788]
[1734547470566,0.17632752,104210.0,104190.0,0.408788]
[1734547470767,0.12834252,104210.0,104190.0,0.408788]
[1734547471872,0.12827124,104200.0,104190.0,0.3608]
[1734547472473,0.047991,104190.0,104180.0,0.632195]
[1734547472776,0.12827524,104190.0,104180.0,0.632195]
[1734547473772,0.12827524,104190.0,104180.0,0.5842]
[1734547474567,0.12827524,104190.0,104180.0,0.5847]
[1734547475369,0.12827524,104190.0,104180.0,0.2239]
[1734547475568,0.12827524,104190.0,104180.0,0.5847]
[1734547476077,0.12827524,104190.0,104180.0,0.2239]
[1734547476266,0.12827524,104190.0,104180.0,0.632696]
[1734547477368,0.08028424,104190.0,104180.0,0.632696]
[1734547478970,0.047991,104200.0,104190.0,0.04799]
[1734547478971,0.047987,104200.0,104190.0,0.04799]
[1734547479177,0.12827124,104200.0,104190.0,0.04799]
[1734547483671,0.047991,104190.0,104180.0,0.3613]
[1734547483868,0.20855948,104190.0,104180.0,0.31331]
[1734547484280,0.56935948,104190.0,104170.0,0.483997]
[1734547484575,0.12828024,104180.0,104170.0,0.0005]
[1734547484778,0.48908024,104180.0,104170.0,0.0005]
[1734547485084,0.489182,104180.0,104170.0,0.0005]
[1734547485581,0.048,104170.0,104160.0,0.41296275]
[1734547485880,0.048,104170.0,104160.0,0.12828201]
[1734547486275,0.12828424,104170.0,104160.0,0.12828201]
[1734547486579,0.12828424,104170.0,104160.0,0.48908201]
[1734547487370,0.12828424,104170.0,104160.0,0.12828201]
[1734547487675,0.12819005,104170.0,104160.0,0.12878201]
[1734547487874,0.12819005,104170.0,104160.0,0.48958201]
[1734547488075,0.12819005,104170.0,104160.0,0.12878201]
[1734547488276,0.12819005,104170.0,104160.0,0.48958201]
[1734547488483,0.12819005,104170.0,104160.0,0.48908201]
[1734547488881,0.048,104170.0,104160.0,0.48908201]
[1734547489276,0.04809876,104180.0,104170.0,0.048]
[1734547489477,0.04809876,104180.0,104170.0,0.4088]
[1734547489677,0.04809876,104180.0,104170.0,0.4864]
[1734547489880,0.00010176,104180.0,104170.0,0.4864]
[1734547491181,0.02992506,104180.0,104170.0,1.01365092]
[1734547491395,0.00010176,104180.0,104170.0,1.01365092]
[1734547493072,0.00010176,104180.0,104170.0,1.09393516]
[1734547493381,0.00010176,104180.0,104170.0,1.05086913]
[1734547493981,1.99e-06,104180.0,104170.0,0.76618839]
[1734547494484,0.04799799,104180.0,104170.0,0.76618839]
[1734547494684,0.07848915,104180.0,104170.0,0.76618839]
[1734547495878,0.03049315,104180.0,104170.0,1.05535693]
[1734547499491,0.03049315,104180.0,104170.0,1.45333673]
[1734547499985,0.03049315,104180.0,104170.0,1.45433673]
[1734547500387,0.11077739,104180.0,104170.0,1.37673673]
[1734547500582,0.11077739,104180.0,104170.0,1.37773673]
[1734547501188,0.07848915,104180.0,104170.0,0.97975693]
[1734547501383,0.07848915,104180.0,104170.0,0.94253872]
[1734547502390,0.07848915,104180.0,104170.0,0.99813143]
[1734547502780,0.15877339,104180.0,104170.0,0.99813143]
[1734547502979,0.15877339,104180.0,104170.0,1.03534964]
[1734547503181,0.24627339,104180.0,104170.0,1.03534964]
[1734547503788,0.24627339,104180.0,104170.0,1.32451818]
[1734547504788,0.24627339,104180.0,104170.0,1.28729997]
[1734547504989,0.24627339,104180.0,104170.0,1.23929997]
[1734547505177,0.34007339,104180.0,104170.0,0.62654964]
[1734547505580,0.70087339,104180.0,104170.0,0.62654964]
[1734547505889,0.70087339,104180.0,104170.0,0.4358129]
[1734547506089,0.70087339,104180.0,104170.0,0.9751246]
[1734547507781,0.42457274,104180.0,104170.0,0.002]
[1734547508293,0.78537274,104180.0,104170.0,0.002]
[1734547508681,0.42457274,104180.0,104170.0,0.002]
[1734547508987,0.34007339,104180.0,104170.0,0.002]
[1734547509584,0.70087339,104180.0,104170.0,0.002]
[1734547511189,0.048,104170.0,104160.0,0.67402865]
[1734547511392,0.12828424,104170.0,104160.0,0.67402865]
[1734547511587,0.22238424,104170.0,104160.0,0.3292674]
[1734547512385,0.22238424,104170.0,104160.0,0.3792724]
[1734547513092,0.22238424,104170.0,104160.0,0.3822724]
[1734547513294,0.13382625,104180.0,104170.0,0.048]
[1734547513490,0.13382625,104180.0,104170.0,0.4991]
[1734547514186,0.21411049,104180.0,104170.0,0.4991]
[1734547514381,0.26210649,104180.0,104170.0,0.4991]
[1734547514791,0.26210649,104180.0,104170.0,0.4088]
[1734547514994,0.26210649,104180.0,104170.0,0.048]
[1734547515197,0.26210649,104180.0,104170.0,0.049]
[1734547515496,0.17760714,104180.0,104170.0,0.69816137]
[1734547516085,0.0973229,104180.0,104170.0,0.69816137]
[1734547516596,0.0493269,104180.0,104170.0,0.69816137]
[1734547521301,0.17760714,104180.0,104170.0,0.28936137]
[1734547521994,0.17760714,104180.0,104170.0,0.52656404]
[1734547523194,0.26210649,104180.0,104170.0,0.23192578]
[1734547523595,0.26210649,104180.0,104170.0,0.27992578]
[1734547523996,0.26210649,104180.0,104170.0,0.23192578]
[1734547525095,0.26210649,104180.0,104170.0,0.27992578]
[1734547525296,0.26210649,104180.0,104170.0,0.23192578]
[1734547525500,0.62290649,104180.0,104170.0,0.23192578]
[1734547525702,0.73557229,104180.0,104170.0,0.23192578]
[1734547527904,0.65107294,104180.0,104170.0,0.23192578]
[1734547530902,0.29027294,104180.0,104170.0,0.23192578]
[1734547531090,0.29027294,104180.0,104170.0,0.23092578]
[1734547531296,0.29027294,104180.0,104170.0,0.23192578]
[1734547540403,0.29027294,104180.0,104170.0,0.27992578]
[1734547540601,0.1619927,104180.0,104170.0,0.27992578]
[1734547541203,0.65107294,104180.0,104170.0,0.23192578]
[1734547541709,0.65107294,104180.0,104170.0,0.51990447]
[1734547542495,0.29027294,104180.0,104170.0,0.51990447]
[1734547542699,0.29027294,104180.0,104170.0,0.002]
[1734547543108,0.29027294,104180.0,104170.0,0.05]
[1734547544108,0.29027294,104180.0,104170.0,0.28014069]
[1734547544311,0.2099887,104180.0,104170.0,0.28014069]
[1734547544501,0.2099887,104180.0,104170.0,0.37254069]
[1734547547210,0.1619927,104180.0,104170.0,0.37254069]
[1734547547412,0.1719927,104180.0,104170.0,0.37254069]
[1734547547601,0.2199887,104180.0,104170.0,0.65990206]
[1734547549304,0.2199887,104180.0,104170.0,0.70155976]
[1734547549705,0.2199887,104180.0,104170.0,0.93031607]
[1734547550112,0.2199887,104180.0,104170.0,0.88865837]
[1734547550516,0.5807887,104180.0,104170.0,0.88865837]
[1734547550714,0.2199887,104180.0,104170.0,0.88865837]
[1734547550901,0.2199887,104180.0,104170.0,0.65851768]
[1734547554213,0.24815515,104180.0,104170.0,0.1424]
[1734547556515,0.60895515,104180.0,104170.0,0.1424]
[1734547556818,0.68923939,104180.0,104170.0,0.002]
[1734547557016,0.048,104170.0,104150.0,0.34476125]
[1734547557206,0.56937348,104160.0,104150.0,0.38641895]
[1734547557409,0.66687348,104160.0,104150.0,0.38641895]
[1734547557814,0.92183923,104160.0,104150.0,0.49371231]
[1734547558415,1.01493923,104160.0,104150.0,0.49371231]
[1734547558610,1.01493923,104160.0,104150.0,0.45205461]
[1734547558810,1.37573923,104160.0,104150.0,0.42721875]
[1734547559316,1.37573923,104160.0,104140.0,0.46283523]
[1734547559317,0.04801,104150.0,104140.0,0.46283523]
[1734547559622,0.48909424,104150.0,104140.0,0.51084923]
[1734547560522,0.32771769,104150.0,104140.0,0.46919153]
[1734547560710,0.32771769,104150.0,104140.0,0.87264923]
[1734547560906,0.32771769,104150.0,104140.0,0.87364923]
[1734547561121,0.32771769,104150.0,104140.0,0.83199153]
[1734547561824,0.21376143,104150.0,104140.0,0.83199153]
[1734547562218,0.16575143,104150.0,104140.0,0.83199153]
[1734547562418,0.27726119,104160.0,104150.0,0.04801]
[1734547562618,0.31035096,104170.0,104160.0,0.048005]
[1734547562919,0.01000199,104180.0,104170.0,0.048]
[1734547563218,0.01000199,104180.0,104170.0,0.83074194]
[1734547563616,0.19716515,104190.0,104180.0,0.047996]
[1734547563811,0.53152539,104210.0,104200.0,0.047987]
[1734547563812,0.36476,104210.0,104200.0,0.047987]
[1734547564025,0.01,104210.0,104200.0,0.769587]
[1734547564230,0.08032535,104210.0,104200.0,0.769587]
[1734547564524,0.05810364,104210.0,104200.0,0.769587]
[1734547564718,0.01062164,104210.0,104200.0,0.769587]
[1734547564921,0.00062164,104210.0,104200.0,0.769587]
[1734547565716,0.00012164,104210.0,104200.0,0.84987124]
[1734547566022,0.01,104220.0,104210.0,0.047982]
[1734547566222,0.01,104220.0,104210.0,0.48906624]
[1734547566430,0.01,104220.0,104210.0,0.78906624]
[1734547566622,0.03318898,104220.0,104210.0,0.78906624]
[1734547566825,0.03318898,104220.0,104210.0,0.88946624]
[1734547567021,0.03325648,104220.0,104210.0,0.88946624]
[1734547567319,0.03325648,104220.0,104210.0,0.58946624]
[1734547567628,0.03325648,104220.0,104210.0,0.59046624]
[1734547568015,0.0100675,104220.0,104210.0,0.89046624]
[1734547568519,0.0100675,104220.0,104210.0,0.89146624]
[1734547569530,0.0100675,104220.0,104210.0,0.59146624]
[1734547569829,0.0105675,104220.0,104210.0,0.59146624]
[1734547570027,0.04797,104240.0,104210.0,0.89146624]
[1734547570324,0.05796,104260.0,104230.0,0.80188424]
[1734547570625,0.4714835,104260.0,104240.0,0.3608]
[1734547570823,0.047967,104250.0,104240.0,0.3608]
[1734547571225,0.047967,104250.0,104240.0,0.047967]
[1734547571432,0.047967,104250.0,104240.0,0.408767]
[1734547571621,0.09801751,104260.0,104240.0,0.53701524]
[1734547571927,0.09801751,104260.0,104240.0,0.48904824]
[1734547572320,0.45881751,104260.0,104240.0,0.408764]
[1734547572525,0.09801751,104260.0,104240.0,0.53801324]
[1734547572726,0.05005751,104260.0,104250.0,0.047964]
[1734547574532,0.05005751,104260.0,104250.0,0.048964]
[1734547574730,0.45881651,104260.0,104250.0,0.001]
[1734547575029,0.09801651,104260.0,104250.0,0.001]
[1734547575226,0.45881651,104260.0,104250.0,0.001]
[1734547575532,0.45881651,104260.0,104250.0,0.002]
[1734547576131,0.09801651,104260.0,104250.0,0.049964]
[1734547576626,0.05005751,104260.0,104250.0,0.049964]
[1734547577020,0.02039926,104260.0,104250.0,0.57133248]
[1734547577224,0.01,104280.0,104270.0,0.047954]
[1734547577528,0.01,104280.0,104270.0,0.84983824]
[1734547578028,0.02594026,104280.0,104270.0,0.94893824]
[1734547578223,0.01,104280.0,104270.0,0.94893824]
[1734547578434,0.1,104300.0,104290.0,0.047945]
[1734547578623,0.157941,104300.0,104290.0,0.047945]
[1734547579132,0.11,104300.0,104290.0,0.047945]
[1734547579724,0.157941,104300.0,104290.0,0.047945]
[1734547580229,0.17730995,104300.0,104290.0,0.408745]
[1734547580421,0.12936895,104300.0,104290.0,0.408745]
[1734547580627,0.12936895,104300.0,104290.0,0.409745]
[1734547580826,0.14581704,104300.0,104290.0,0.410745]
[1734547581036,0.13581704,104300.0,104290.0,0.410745]
[1734547581619,0.13581704,104300.0,104290.0,0.49102924]
[1734547582533,0.11644809,104300.0,104290.0,0.49102924]
[1734547582919,0.11644809,104300.0,104290.0,0.410745]
[1734547583125,0.11644809,104300.0,104290.0,0.049945]
[1734547583422,0.16438909,104300.0,104290.0,0.049945]
[1734547583626,0.35188909,104300.0,104290.0,0.049945]
[1734547584026,0.35188909,104300.0,104290.0,0.002]
[1734547584231,0.79297333,104300.0,104280.0,0.047948]
[1734547584533,0.48903224,104290.0,104270.0,0.3608]
[1734547584719,0.408748,104290.0,104280.0,0.04795]
[1734547585130,0.047948,104290.0,104280.0,0.04795]
[1734547585533,0.047948,104290.0,104280.0,0.04895]
[1734547586526,0.11644809,104300.0,104290.0,0.047945]
[1734547586733,0.11644809,104300.0,104290.0,0.408745]
[1734547587539,0.11644809,104300.0,104290.0,0.48902924]
[1734547588239,0.11644809,104300.0,104290.0,0.408745]
[1734547589539,0.11644809,104300.0,104290.0,0.409745]
[1734547590235,0.11644809,104300.0,104290.0,0.49002924]
[1734547590441,0.1,104300.0,104290.0,0.49002924]
[1734547591639,0.1005,104300.0,104290.0,0.49002924]
[1734547591830,0.01,104320.0,104310.0,0.047936]
[1734547592035,0.01,104320.0,104310.0,0.59012024]
[1734547592243,0.01,104320.0,104310.0,0.408736]
[1734547592430,0.057931,104320.0,104310.0,0.408736]
[1734547592631,0.01,104320.0,104310.0,0.408736]
[1734547593141,0.01,104320.0,104310.0,0.410736]
[1734547593435,0.057931,104320.0,104310.0,0.410736]
[1734547593631,0.02638994,104320.0,104310.0,0.49102024]
[1734547593831,0.01,104320.0,104310.0,0.85182024]
[1734547594736,0.0105,104320.0,104310.0,0.771536]
[1734547595935,0.0105,104320.0,104310.0,0.770536]
[1734547598736,0.01,104320.0,104310.0,0.770536]
[1734547601047,0.01,104320.0,104310.0,0.85082024]
[1734547605649,0.01,104320.0,104310.0,0.86658813]
[1734547606951,0.0005,104340.0,104320.0,0.095862]
[1734547607147,0.0005,104340.0,104330.0,0.59161124]
[1734547607348,0.14208536,104340.0,104330.0,0.59161124]
[1734547607651,0.14158536,104340.0,104330.0,0.59161124]
[1734547608537,0.14158536,104340.0,104330.0,0.95241124]
[1734547608751,0.0005,104350.0,104330.0,1.12391957]
[1734547608956,0.0164638,104350.0,104340.0,0.48900624]
[1734547609251,0.048418,104350.0,104340.0,0.047922]
[1734547609643,0.047918,104350.0,104340.0,0.047922]
[1734547609841,0.6305856,104360.0,104340.0,0.408722]